bitfinex/quotes_SOLUSD_20250831
["timestamp","ask_amount","ask_price","bid_price","bid_amount"]
[1756656020117,4.57193152,204.88,204.87,0.03]
[1756656020434,5.17193152,204.88,204.87,0.03]
[1756656020642,34.46009232,204.88,204.87,0.03]
[1756656020820,69.01193152,204.88,204.87,0.03]
[1756656022044,69.38090589,204.88,204.87,0.03]
[1756656022228,73.89283741,204.88,204.87,0.03]
[1756656023644,77.18125031,204.88,204.87,0.03]
[1756656024134,67.1884129,204.88,204.87,0.03]
[1756656024445,71.70034442,204.88,204.87,0.03]
[1756656024747,68.41193152,204.88,204.87,0.03]
[1756656025043,63.9,204.88,204.87,0.03]
[1756656025242,68.41193152,204.88,204.87,0.03]
[1756656025541,73.29283741,204.88,204.87,0.03]
[1756656025741,30.94090589,204.88,204.87,0.03]
[1756656026036,26.06,204.88,204.87,0.72]
[1756656027648,30.57193152,204.88,204.87,0.03]
[1756656027856,35.45283741,204.88,204.87,0.03]
[1756656028019,36.05283741,204.88,204.87,0.03]
[1756656028514,35.45283741,204.88,204.87,0.03]
[1756656028921,26.06,204.88,204.87,0.03]
[1756656029130,30.57193152,204.88,204.87,0.03]
[1756656031541,68.41193152,204.88,204.87,0.03]
[1756656034037,73.29283741,204.88,204.87,0.03]
[1756656034846,72.67066723,204.88,204.87,0.03]
[1756656035139,77.18259875,204.88,204.87,0.03]
[1756656035543,76.58259875,204.88,204.87,0.03]
[1756656035748,77.18259875,204.88,204.87,0.03]
[1756656036658,76.58259875,204.88,204.87,0.03]
[1756656038752,72.67066723,204.88,204.87,0.03]
[1756656038928,77.18259875,204.88,204.87,0.03]
[1756656039435,76.58259875,204.88,204.87,0.03]
[1756656039738,76.08259875,204.88,204.87,0.03]
[1756656041433,71.57066723,204.88,204.87,0.03]
[1756656041760,76.08259875,204.88,204.87,0.03]
[1756656042251,71.57066723,204.88,204.87,0.03]
[1756656042452,76.08259875,204.88,204.87,0.03]
[1756656042637,76.68259875,204.88,204.87,0.03]
[1756656043255,76.08259875,204.88,204.87,0.03]
[1756656043834,71.57066723,204.88,204.87,0.03]
[1756656044031,76.68259875,204.88,204.87,0.03]
[1756656044236,76.68259875,204.88,204.84,0.03]
[1756656044237,39.59559401,204.85,204.84,0.03]
[1756656044451,89.74921839,204.85,204.83,0.03]
[1756656044654,12.91362438,204.84,204.83,0.03]
[1756656044849,13.59559401,204.83,204.81,1e-08]
[1756656045036,50.15362438,204.82,204.72,0.67]
[1756656045244,7.80169286,204.81,204.72,0.67]
[1756656045440,9.75964586,204.81,204.72,0.67]
[1756656045659,10.35964586,204.81,204.72,0.67]
[1756656045971,10.35964586,204.81,204.71,0.03]
[1756656045972,30.88305093,204.79,204.71,0.03]
[1756656046133,76.52474379,204.79,204.71,0.03]
[1756656046334,89.33237111,204.79,204.71,0.03]
[1756656046542,26.0,204.75,204.71,0.03]
[1756656046750,68.35193152,204.75,204.71,0.03]
[1756656047061,68.35193152,204.75,204.74,0.7]
[1756656048868,68.35193152,204.75,204.74,0.03]
[1756656049646,68.35193152,204.75,204.74,0.7]
[1756656051062,30.51193152,204.75,204.74,0.7]
[1756656051270,68.35193152,204.75,204.74,0.7]
[1756656051444,68.35193152,204.75,204.74,0.03]
[1756656051840,68.35193152,204.75,204.74,0.7]
[1756656055848,68.35193152,204.75,204.74,0.03]
[1756656056654,73.2359364,204.75,204.74,0.03]
[1756656057059,75.7939854,204.75,204.74,0.03]
[1756656057738,79.06607742,204.75,204.74,0.03]
[1756656058354,79.06557092,204.75,204.74,0.03]
[1756656060650,78.46557092,204.75,204.74,0.03]
[1756656060857,79.06557092,204.75,204.74,0.03]
[1756656061252,79.06557092,204.75,204.74,1e-08]
[1756656061452,26.0,204.72,204.71,0.03]
[1756656061673,50.15180649,204.72,204.71,1e-08]
[1756656061850,50.75180649,204.72,204.71,1e-08]
[1756656062053,55.63652708,204.72,204.71,1e-08]
[1756656062249,69.23212109,204.72,204.68,0.03]
[1756656062476,26.0,204.68,204.66,0.2]
[1756656062778,7.77987497,204.71,204.66,0.2]
[1756656062779,42.37193152,204.67,204.66,0.2]
[1756656063902,4.51193152,204.67,204.66,0.2]
[1756656064105,9.39784543,204.67,204.66,0.2]
[1756656064472,68.37193152,204.67,204.66,0.91]
[1756656064673,63.86,204.67,204.66,0.91]
[1756656064885,68.37193152,204.67,204.66,0.91]
[1756656065599,68.37193152,204.67,204.66,0.2]
[1756656066190,73.25784543,204.67,204.66,0.2]
[1756656066392,207.55784543,204.67,204.66,0.2]
[1756656067494,209.51714143,204.67,204.66,0.2]
[1756656069308,26.0,204.64,204.63,0.03]
[1756656069488,68.37193152,204.64,204.63,0.03]
[1756656070919,73.25856169,204.64,204.63,0.03]
[1756656071097,75.21814469,204.64,204.63,0.03]
[1756656071696,75.81814469,204.64,204.63,0.03]
[1756656071908,75.21814469,204.64,204.63,0.03]
[1756656072210,75.81814469,204.64,204.63,0.03]
[1756656072592,70.70621317,204.64,204.63,0.03]
[1756656072796,73.29856169,204.64,204.63,0.74]
[1756656073007,73.29856169,204.64,204.63,0.03]
[1756656074286,73.89856169,204.64,204.63,0.03]
[1756656075211,86.11513713,204.64,204.6,0.2]
[1756656075407,9.02386304,204.61,204.6,0.2]
[1756656075694,60.53945705,204.61,204.6,1e-08]
[1756656075912,39.59559401,204.59,204.58,0.03]
[1756656076110,44.10752553,204.59,204.58,0.03]
[1756656076311,82.66752553,204.59,204.58,0.03]
[1756656076518,82.06752553,204.59,204.58,0.03]
[1756656076902,87.55534995,204.59,204.58,0.03]
[1756656077108,89.51560595,204.59,204.58,0.03]
[1756656078706,26.0,204.55,204.53,0.2]
[1756656078914,47.36095078,204.54,204.53,0.2]
[1756656079696,26.0,204.55,204.53,0.91]
[1756656079918,4.51193152,204.54,204.53,0.2]
[1756656080224,42.47193152,204.54,204.53,0.2]
[1756656080524,42.47193152,204.54,204.53,0.91]
[1756656080904,37.96,204.55,204.53,0.91]
[1756656081105,37.98,204.55,204.54,0.71]
[1756656081310,4.51193152,204.58,204.54,0.71]
[1756656081503,26.0,204.55,204.54,0.71]
[1756656082105,42.49193152,204.57,204.54,0.71]
[1756656082300,37.98,204.57,204.54,0.71]
[1756656082523,26.0,204.55,204.54,0.71]
[1756656084106,4.51193152,204.59,204.54,5.22193152]
[1756656084325,37.96,204.59,204.55,5.22193152]
[1756656084621,37.96,204.59,204.56,5.22193152]
[1756656084824,37.96,204.59,204.57,0.71]
[1756656085212,63.96,204.6,204.57,0.71]
[1756656085410,26.0,204.58,204.57,0.71]
[1756656085807,26.0,204.58,204.57,5.22193152]
[1756656086220,133.7,204.61,204.57,10.11020849]
[1756656086526,4.51193152,204.66,204.6,4.51193152]
[1756656086826,37.98,204.65,204.61,5.22193152]
[1756656087025,4.51193152,204.65,204.62,0.71]
[1756656087413,68.49193152,204.66,204.62,0.71]
[1756656087915,63.98,204.66,204.62,10.1089692]
[1756656088111,37.98,204.66,204.63,0.71]
[1756656090317,37.96,204.67,204.63,5.59675662]
[1756656090537,37.96,204.67,204.64,5.22193152]
[1756656090838,37.96,204.67,204.65,0.71]
[1756656091006,37.96,204.67,204.66,0.71]
[1756656091710,38.02,204.67,204.66,0.71]
[1756656092929,0.06,204.67,204.66,0.71]
[1756656093434,0.06,204.67,204.66,10.10808416]
[1756656096036,0.06,204.67,204.66,0.71]
[1756656096232,0.06,204.67,204.66,5.22193152]
[1756656097437,0.06,204.67,204.66,10.10808416]
[1756656104124,0.06,204.67,204.66,23.70367817]
[1756656104325,0.06,204.69,204.67,13.59559401]
[1756656104528,0.06,204.69,204.67,14.25559401]
[1756656104734,0.06,204.69,204.68,5.17193152]
[1756656104936,0.06,204.69,204.68,0.66]
[1756656105119,0.06,204.69,204.68,5.17193152]
[1756656105939,0.06,204.69,204.68,0.66]
[1756656106318,0.06,204.69,204.65,0.66]
[1756656106517,0.06,204.69,204.65,4.88634651]
[1756656106713,0.06,204.69,204.66,0.66]
[1756656106922,0.06,204.69,204.66,5.17193152]
[1756656108149,0.06,204.69,204.66,0.66]
[1756656108549,4.51193152,204.67,204.65,4.88634651]
[1756656108736,4.51193152,204.67,204.62,13.59559401]
[1756656108737,5.11193152,204.66,204.6,0.69]
[1756656108937,4.51193152,204.62,204.6,0.03]
[1756656110832,4.51193152,204.61,204.6,0.03]
[1756656111030,30.51193152,204.61,204.6,0.03]
[1756656111634,4.51193152,204.61,204.6,0.03]
[1756656112044,30.51193152,204.61,204.6,0.03]
[1756656114629,31.11193152,204.61,204.6,0.03]
[1756656114834,30.51193152,204.61,204.6,0.03]
[1756656115364,26.0,204.61,204.6,0.03]
[1756656115563,30.51193152,204.61,204.6,0.03]
[1756656115931,26.0,204.61,204.6,0.03]
[1756656116132,30.51193152,204.61,204.6,0.03]
[1756656116657,31.11193152,204.61,204.6,0.03]
[1756656116951,30.51193152,204.61,204.6,0.03]
[1756656122663,26.0,204.61,204.6,0.03]
[1756656122841,30.51193152,204.61,204.6,0.03]
[1756656123042,63.98,204.61,204.6,0.03]
[1756656123378,69.09193152,204.61,204.6,0.03]
[1756656123540,68.49193152,204.61,204.6,0.03]
[1756656124970,73.37927817,204.61,204.6,0.03]
[1756656127758,68.86734665,204.61,204.6,0.03]
[1756656127966,63.98,204.61,204.6,0.03]
[1756656129638,73.37927817,204.61,204.6,0.03]
[1756656129862,73.97927817,204.61,204.6,0.03]
[1756656130047,73.37927817,204.61,204.6,0.03]
[1756656132064,77.26333648,204.61,204.6,0.03]
[1756656134475,79.22301548,204.61,204.6,0.03]
[1756656134846,83.734947,204.61,204.6,1e-08]
[1756656135172,97.33054101,204.61,204.6,1e-08]
[1756656135857,97.27054101,204.61,204.6,1e-08]
[1756656136257,4.51193152,204.59,204.58,1e-08]
[1756656136465,45.71598983,204.59,204.58,1e-08]
[1756656136667,46.31598983,204.59,204.58,1e-08]
[1756656137071,51.20381425,204.59,204.58,1e-08]
[1756656137655,64.79940826,204.59,204.57,1e-08]
[1756656137867,45.71598983,204.58,204.57,1e-08]
[1756656138171,59.31158384,204.58,204.57,1e-08]
[1756656138351,59.91158384,204.58,204.57,1e-08]
[1756656138555,26.0,204.55,204.53,0.2]
[1756656138753,179.21113094,204.54,204.53,1e-08]
[1756656138957,51.2201502,204.54,204.53,1e-08]
[1756656139150,69.32767521,204.54,204.53,1e-08]
[1756656141170,64.81574369,204.54,204.53,1e-08]
[1756656141376,73.27480225,204.54,204.53,1e-08]
[1756656142476,73.25480225,204.54,204.53,1e-08]
[1756656143866,35.33480225,204.54,204.53,1e-08]
[1756656144060,73.25480225,204.54,204.53,1e-08]
[1756656144579,73.23480225,204.54,204.53,1e-08]
[1756656144954,30.22287073,204.54,204.53,1e-08]
[1756656145157,17.86000882,204.54,204.53,1e-08]
[1756656145356,55.76000882,204.54,204.53,1e-08]
[1756656145676,56.36000882,204.54,204.53,1e-08]
[1756656145886,55.76000882,204.54,204.53,1e-08]
[1756656146266,55.78000882,204.54,204.53,1e-08]
[1756656146876,17.86000882,204.54,204.53,0.68000001]
[1756656147084,55.76000882,204.54,204.53,0.68000001]
[1756656147387,55.76000882,204.54,204.53,1e-08]
[1756656149159,17.86000882,204.54,204.53,1e-08]
[1756656149355,55.78000882,204.54,204.53,1e-08]
[1756656149575,42.80901926,204.54,204.53,0.68000001]
[1756656149784,47.32095078,204.54,204.53,0.68000001]
[1756656150096,49.28130278,204.54,204.53,0.68000001]
[1756656151689,1.960352,204.54,204.53,0.68000001]
[1756656151894,37.92,204.54,204.53,0.68000001]
[1756656152389,63.92,204.54,204.53,0.68000001]
[1756656154004,37.92,204.55,204.53,0.68000001]
[1756656156008,47.32080795,204.55,204.53,1e-08]
[1756656156195,4.51193152,204.54,204.53,1e-08]
[1756656156895,136.61193152,204.54,204.53,1e-08]
[1756656157887,141.50095078,204.54,204.53,1e-08]
[1756656158889,13.28455527,204.54,204.53,1e-08]
[1756656160299,12.68455527,204.54,204.53,1e-08]
[1756656160490,50.60455527,204.54,204.53,1e-08]
[1756656161790,51.20455527,204.54,204.53,1e-08]
[1756656162500,53.16509927,204.54,204.53,1e-08]
[1756656162699,48.11316775,204.54,204.53,1e-08]
[1756656162900,66.82069328,204.54,204.53,1e-08]
[1756656163209,26.0,204.51,204.5,0.03]
[1756656163402,71.73553601,204.51,204.5,0.03]
[1756656163717,77.22527245,204.51,204.5,0.03]
[1756656163894,79.18610445,204.51,204.5,0.03]
[1756656164608,78.58610445,204.51,204.5,0.03]
[1756656164786,79.18610445,204.51,204.5,0.03]
[1756656164989,78.58610445,204.51,204.5,0.03]
[1756656167818,40.64610445,204.51,204.5,0.03]
[1756656168117,78.56610445,204.51,204.5,0.03]
[1756656169118,40.64610445,204.51,204.5,0.03]
[1756656169315,78.56610445,204.51,204.5,0.03]
[1756656170118,36.13417293,204.51,204.5,0.75]
[1756656170308,75.28249996,204.51,204.5,0.75]
[1756656170501,47.32166796,204.51,204.5,0.75]
[1756656170902,42.80973644,204.51,204.5,0.75]
[1756656171215,42.43193152,204.51,204.5,0.75]
[1756656171389,47.32166796,204.51,204.5,0.75]
[1756656174502,9.40166796,204.51,204.5,0.75]
[1756656174709,68.43193152,204.51,204.5,0.75]
[1756656175715,76.61261108,204.51,204.5,0.75]
[1756656177613,76.61261108,204.51,204.5,0.03]
[1756656178512,76.61261108,204.51,204.5,0.75]
[1756656179801,72.10067956,204.51,204.5,0.75]
[1756656180108,76.61261108,204.51,204.5,0.75]
[1756656180910,77.21261108,204.51,204.5,0.03]
[1756656181316,82.10423008,204.51,204.5,0.03]
[1756656181531,81.50423008,204.51,204.5,0.03]
[1756656181927,43.58423008,204.51,204.5,0.03]
[1756656182247,81.50423008,204.51,204.5,0.03]
[1756656182415,81.50423008,204.51,204.47,0.03]
[1756656182416,30.51193152,204.48,204.47,0.03]
[1756656182606,71.72287464,204.48,204.47,0.03]
[1756656183009,90.43039965,204.48,204.47,0.03]
[1756656183534,26.0,204.44,204.39,0.67]
[1756656183708,26.0,204.41,204.4,0.67]
[1756656184010,73.32406008,204.41,204.4,0.67]
[1756656184209,73.32406008,204.41,204.38,0.67]
[1756656184419,73.32406008,204.41,204.33,9.40594356]
[1756656184420,4.51193152,204.39,204.33,9.40594356]
[1756656184627,37.92,204.38,204.33,4.51193152]
[1756656185138,37.92,204.38,204.34,0.67]
[1756656185432,42.43193152,204.38,204.34,0.67]
[1756656185934,47.32481201,204.38,204.34,0.67]
[1756656186133,42.43193152,204.38,204.34,0.67]
[1756656187329,37.92,204.38,204.34,0.67]
[1756656187915,37.92,204.38,204.34,5.18193152]
[1756656188238,37.92,204.38,204.35,0.67]
[1756656188734,4.51193152,204.41,204.35,5.18193152]
[1756656188949,26.0,204.4,204.39,4.51193152]
[1756656189114,172.32,204.43,204.4,0.67]
[1756656189434,172.32,204.43,204.4,5.18193152]
[1756656189922,172.32,204.43,204.41,0.67]
[1756656190120,176.83193152,204.43,204.41,0.67]
[1756656190321,176.83193152,204.43,204.3,13.59559401]
[1756656190322,26.0,204.4,204.3,13.59559401]
[1756656190622,42.43193152,204.39,204.36,0.67]
[1756656190832,37.92,204.39,204.37,0.67]
[1756656191446,3.28502388,204.38,204.29,13.595594]
[1756656191644,30.51193152,204.35,204.33,0.67]
[1756656191845,68.47193152,204.35,204.33,0.67]
[1756656192062,63.96,204.35,204.33,0.67]
[1756656192230,63.96,204.35,204.31,4.51193152]
[1756656192429,63.96,204.35,204.32,0.67]
[1756656192647,63.96,204.35,204.33,0.67]
[1756656193030,68.47193152,204.35,204.33,0.67]
[1756656193250,4.51193152,204.34,204.3,0.67]
[1756656193451,4.51193152,204.32,204.26,4.51193152]
[1756656193625,37.96,204.33,204.28,0.67]
[1756656193933,37.98,204.32,204.29,0.67]
[1756656194131,4.51193152,204.33,204.3,0.67]
[1756656194132,37.98,204.31,204.3,0.67]
[1756656197344,37.98,204.31,204.28,0.67]
[1756656197657,42.49193152,204.31,204.28,0.67]
[1756656197953,37.98,204.31,204.29,0.67]
[1756656198132,37.98,204.31,204.3,0.67]
[1756656199565,42.49193152,204.31,204.3,0.7]
[1756656200562,134.4,204.32,204.3,0.7]
[1756656200766,172.34,204.32,204.3,0.7]
[1756656200945,172.34,204.32,204.31,0.67]
[1756656201659,176.85193152,204.32,204.31,0.67]
[1756656202057,134.4,204.32,204.31,5.18193152]
[1756656202369,134.4,204.32,204.31,10.07645454]
[1756656202863,134.4,204.32,204.31,5.56452302]
[1756656203072,134.4,204.32,204.31,10.07645454]
[1756656205348,26.0,204.37,204.31,10.07645454]
[1756656205552,37.96,204.36,204.34,9.40572368]
[1756656205759,63.94,204.37,204.34,10.07572368]
[1756656206347,63.94,204.37,204.34,0.67]
[1756656206887,26.0,204.37,204.36,4.51193152]
[1756656207250,26.0,204.37,204.36,0.67]
[1756656208448,63.94,204.39,204.36,5.18193152]
[1756656208649,63.94,204.39,204.37,0.67]
[1756656209771,63.94,204.39,204.36,4.51193152]
[1756656209968,63.94,204.39,204.36,0.67]
[1756656210166,63.94,204.39,204.36,5.18193152]
[1756656210558,69.05193152,204.39,204.34,5.18193152]
[1756656211289,69.05193152,204.39,204.32,0.67]
[1756656211290,4.51193152,204.37,204.32,0.67]
[1756656211595,42.45193152,204.37,204.33,0.67]
[1756656211975,37.94,204.37,204.33,0.67]
[1756656212574,42.45193152,204.37,204.33,0.67]
[1756656213982,42.45193152,204.37,204.3,0.03]
[1756656213983,47.34511857,204.37,204.3,0.03]
[1756656214195,4.51193152,204.35,204.3,4.54193152]
[1756656214373,42.45193152,204.34,204.3,0.7]
[1756656214567,37.94,204.34,204.3,0.7]
[1756656214762,42.45193152,204.34,204.3,0.7]
[1756656214967,37.94,204.34,204.31,0.67]
[1756656215661,47.34575182,204.34,204.3,0.03]
[1756656215885,42.45193152,204.34,204.3,0.7]
[1756656216077,37.94,204.34,204.3,5.21193152]
[1756656216590,160.4,204.36,204.33,4.51193152]
[1756656216784,160.4,204.36,204.34,5.18193152]
[1756656217167,160.4,204.36,204.34,0.67]
[1756656217371,160.4,204.36,204.34,5.18193152]
[1756656217700,160.4,204.36,204.34,0.67]
[1756656218687,160.4,204.36,204.33,0.03]
[1756656218887,160.4,204.36,204.33,0.7]
[1756656219467,160.4,204.36,204.34,0.67]
[1756656220482,160.4,204.36,204.33,0.03]
[1756656220697,160.4,204.36,204.34,0.67]
[1756656221757,134.4,204.36,204.34,0.67]
[1756656221957,134.4,204.36,204.35,0.67]
[1756656222182,134.4,204.36,204.33,10.10597366]
[1756656222367,134.4,204.36,204.34,0.67]
[1756656223877,134.4,204.36,204.35,0.67]
[1756656225091,134.4,204.36,204.34,9.40566765]
[1756656225288,134.4,204.36,204.34,0.67]
[1756656225492,134.4,204.36,204.33,9.43593393]
[1756656225493,38.54,204.35,204.33,0.03]
[1756656225804,4.51193152,204.34,204.33,0.03]
[1756656225972,9.40573596,204.34,204.33,0.03]
[1756656226176,10.00573596,204.34,204.33,0.03]
[1756656226870,0.6,204.34,204.33,0.03]
[1756656227092,63.94,204.35,204.33,0.03]
[1756656227268,7.8066258,204.34,204.33,0.03]
[1756656228283,45.7466258,204.34,204.33,0.03]
[1756656228587,30.51193152,204.35,204.33,0.03]
[1756656228800,37.94,204.34,204.33,0.03]
[1756656231242,41.23632122,204.34,204.33,0.03]
[1756656231404,37.94,204.34,204.33,0.03]
[1756656231604,134.4,204.36,204.33,0.03]
[1756656231811,134.4,204.36,204.33,0.7]
[1756656232320,138.91193152,204.36,204.33,0.03]
[1756656232742,41.83622519,204.35,204.33,0.03]
[1756656232925,42.45193152,204.35,204.33,0.03]
[1756656233527,4.51193152,204.34,204.33,0.03]
[1756656234021,3.29645567,204.34,204.33,0.03]
[1756656235629,8.40838719,204.34,204.33,0.03]
[1756656235948,22.70909363,204.34,204.33,0.03]
[1756656236317,26.61648944,204.34,204.33,0.03]
[1756656236525,30.73766573,204.34,204.33,0.03]
[1756656238935,44.33325974,204.34,204.33,0.03]
[1756656239143,39.82132822,204.34,204.33,0.03]
[1756656239354,78.15208345,204.34,204.33,0.03]
[1756656239520,60.66566245,204.34,204.33,0.03]
[1756656240621,51.25876045,204.34,204.33,0.03]
[1756656242229,55.25774163,204.34,204.33,0.03]
[1756656243043,50.65876045,204.34,204.33,0.03]
[1756656243967,51.25876045,204.34,204.33,0.03]
[1756656246047,53.22132445,204.34,204.33,0.03]
[1756656247647,26.0,204.31,204.3,0.03]
[1756656247847,89.87248154,204.31,204.23,0.67]
[1756656248024,35.40813206,204.24,204.23,0.67]
[1756656248223,73.38813206,204.24,204.16,4.89807217]
[1756656248548,68.87620054,204.24,204.21,0.67]
[1756656248723,68.87620054,204.24,204.22,0.67]
[1756656249831,4.51193152,204.23,204.22,0.67]
[1756656250027,4.51193152,204.23,204.16,9.41003323]
[1756656250254,37.98,204.22,204.16,4.89810171]
[1756656250453,42.49193152,204.23,204.17,5.18193152]
[1756656250767,42.49193152,204.22,204.18,0.67]
[1756656250929,37.98,204.22,204.18,0.67]
[1756656251134,42.49193152,204.22,204.18,0.67]
[1756656251740,37.98,204.22,204.18,0.67]
[1756656251932,12.83810456,204.28,204.18,0.67]
[1756656251933,42.49193152,204.23,204.18,5.18193152]
[1756656252133,63.98,204.23,204.19,5.18193152]
[1756656252430,63.98,204.23,204.2,0.67]
[1756656252733,68.49193152,204.23,204.2,0.67]
[1756656253346,63.98,204.23,204.2,0.67]
[1756656255338,26.0,204.23,204.2,0.67]
[1756656255756,26.0,204.23,204.18,0.03]
[1756656255959,37.98,204.22,204.19,0.67]
[1756656256265,30.51193152,204.23,204.19,0.67]
[1756656256266,68.49193152,204.23,204.19,0.67]
[1756656257663,4.51193152,204.22,204.2,0.67]
[1756656258041,4.51193152,204.22,204.21,0.67]
[1756656258354,4.51193152,204.22,204.18,0.03]
[1756656258562,4.51193152,204.22,204.21,0.67]
[1756656259459,68.87647308,204.23,204.21,0.67]
[1756656259764,4.51193152,204.22,204.18,0.03]
[1756656260073,4.51193152,204.22,204.19,0.67]
[1756656260559,4.51193152,204.22,204.18,0.03]
[1756656260767,4.51193152,204.22,204.2,0.67]
[1756656261552,68.87647308,204.23,204.2,0.67]
[1756656262044,4.51193152,204.22,204.2,0.67]
[1756656263347,68.87647308,204.23,204.2,0.67]
[1756656263546,4.51193152,204.22,204.2,0.67]
[1756656263867,4.51193152,204.22,204.18,0.7]
[1756656264052,4.51193152,204.22,204.18,0.03]
[1756656264250,4.51193152,204.22,204.19,0.67]
[1756656264870,4.51193152,204.22,204.18,0.03]
[1756656265050,138.91193152,204.22,204.2,0.67]
[1756656265357,138.91193152,204.22,204.18,0.7]
[1756656265565,138.91193152,204.22,204.19,0.67]
[1756656266448,172.36,204.22,204.2,0.67]
[1756656266762,134.4,204.22,204.21,0.67]
[1756656267573,134.4,204.22,204.18,4.92755787]
[1756656267745,134.4,204.22,204.2,0.67]
[1756656269059,134.4,204.22,204.18,9.43948939]
[1756656269266,134.4,204.28,204.21,5.18193152]
[1756656269450,176.87193152,204.27,204.22,5.18193152]
[1756656269651,198.36,204.27,204.23,0.67]
[1756656269850,26.0,204.25,204.24,0.67]
[1756656270065,176.87193152,204.27,204.24,0.67]
[1756656270365,176.87193152,204.27,204.22,0.67]
[1756656270572,176.87193152,204.27,204.23,0.67]
[1756656271369,176.87193152,204.27,204.24,0.67]
[1756656271570,172.36,204.27,204.24,0.67]
[1756656272865,176.87193152,204.27,204.22,10.12855653]
[1756656273070,177.47193152,204.27,204.22,9.40855653]
[1756656273246,177.47193152,204.27,204.23,0.72]
[1756656273247,4.51193152,204.26,204.23,0.72]
[1756656273453,177.2555079,204.27,204.23,0.72]
[1756656273454,4.51193152,204.25,204.23,0.72]
[1756656274854,4.51193152,204.26,204.23,0.72]
[1756656275673,134.4,204.27,204.24,0.72]
[1756656275879,37.96,204.26,204.24,0.72]
[1756656276061,37.96,204.26,204.22,9.40857656]
[1756656276369,42.47193152,204.26,204.21,9.40882004]
[1756656276674,42.47193152,204.26,204.22,0.72]
[1756656276675,4.51193152,204.26,204.22,0.72]
[1756656277468,4.51193152,204.26,204.21,4.51193152]
[1756656277673,4.51193152,204.26,204.22,0.72]
[1756656278245,4.51193152,204.26,204.21,4.51193152]
[1756656278449,177.25551006,204.27,204.22,0.72]
[1756656278676,4.51193152,204.26,204.22,0.72]
[1756656279069,172.36,204.27,204.23,0.72]
[1756656279252,4.51193152,204.26,204.23,0.72]
[1756656280167,4.51193152,204.26,204.21,9.40881427]
[1756656280168,30.51193152,204.24,204.2,0.03]
[1756656280378,42.47193152,204.23,204.2,0.03]
[1756656281071,4.51193152,204.22,204.2,0.03]
[1756656281370,42.47193152,204.23,204.2,0.75]
[1756656282166,42.47193152,204.23,204.2,0.03]
[1756656282674,47.36837253,204.23,204.2,0.03]
[1756656283065,42.47193152,204.23,204.2,0.03]
[1756656283266,37.96,204.23,204.2,0.03]
[1756656283466,42.47193152,204.23,204.2,0.03]
[1756656284276,42.47193152,204.23,204.2,0.75]
[1756656284585,160.4,204.24,204.21,0.72]
[1756656284788,160.4,204.24,204.22,0.72]
[1756656284968,160.4,204.24,204.23,0.72]
[1756656285373,160.4,204.24,204.21,4.51193152]
[1756656285685,160.4,204.24,204.22,0.72]
[1756656286391,134.4,204.24,204.23,0.72]
[1756656289085,134.4,204.24,204.23,10.1283718]
[1756656289590,134.4,204.24,204.23,4.89644028]
[1756656289769,134.4,204.24,204.23,0.72]
[1756656292887,134.4,204.24,204.23,0.75]
[1756656293775,134.4,204.24,204.23,5.64644028]
[1756656294390,134.4,204.24,204.23,10.1583718]
[1756656295264,134.4,204.24,204.23,5.26193152]
[1756656295594,134.4,204.24,204.23,0.75]